bitfinex/quotes_SOLUSD_20250419
["timestamp","ask_amount","ask_price","bid_price","bid_amount"]
[1745076023679,0.063,139.54,139.53,63.85668569]
[1745076024792,0.063,139.54,139.53,37.85668569]
[1745076025602,0.063,139.57,139.56,26.0]
[1745076025827,0.063,139.59,139.56,36.50011933]
[1745076025984,0.063,139.59,139.58,10.50011933]
[1745076027703,0.063,139.59,139.58,17.66446952]
[1745076038993,0.063,139.59,139.58,43.66446952]
[1745076039393,0.063,139.59,139.58,62.31411838]
[1745076040914,0.063,139.6,139.58,62.31411838]
[1745076041119,0.063,139.6,139.59,17.66395628]
[1745076041491,0.063,139.6,139.59,36.31360514]
[1745076045607,0.03,139.62,139.59,17.66395628]
[1745076045801,0.03,139.62,139.6,55.14976819]
[1745076046914,0.03,139.62,139.6,36.50011933]
[1745076047120,0.03,139.62,139.6,55.14976819]
[1745076047619,0.03,139.62,139.6,62.31309197]
[1745076051311,0.03,139.62,139.6,51.81297264]
[1745076051507,0.03,139.62,139.6,62.31309197]
[1745076052217,0.03,139.62,139.6,33.16332378]
[1745076052404,0.03,139.62,139.6,43.66344311]
[1745076055312,0.03,139.62,139.6,33.16332378]
[1745076055618,0.03,139.62,139.6,43.66344311]
[1745076060204,0.03,139.62,139.6,62.31309197]
[1745076060609,0.03,139.62,139.6,43.66344311]
[1745076062226,0.03,139.62,139.6,76.51309197]
[1745076068938,0.03,139.62,139.6,50.51309197]
[1745076072434,0.03,139.62,139.61,44.64964886]
[1745076072650,0.03,139.62,139.61,55.14976819]
[1745076073149,1e-08,139.62,139.61,55.14976819]
[1745076073354,1e-08,139.63,139.61,36.31257887]
[1745076073534,1e-08,139.63,139.62,36.50011933]
[1745076074244,1e-08,139.64,139.63,18.64964886]
[1745076074456,1e-08,139.65,139.63,29.14976819]
[1745076074632,1e-08,139.65,139.63,111.64976819]
[1745076075736,1e-08,139.65,139.64,51.8109207]
[1745076076238,1e-08,139.65,139.64,62.31104003]
[1745076078053,1e-08,139.65,139.64,43.66139117]
[1745076078853,1e-08,139.65,139.64,33.16127184]
[1745076079057,1e-08,139.65,139.64,43.66139117]
[1745076079763,1e-08,139.65,139.61,114.48702671]
[1745076080060,1e-08,139.65,139.62,36.50011933]
[1745076080557,1e-08,139.65,139.62,10.50011933]
[1745076080760,1e-08,139.65,139.62,17.66241699]
[1745076080965,1e-08,139.65,139.62,43.66241699]
[1745076086564,1e-08,139.65,139.64,43.66139117]
[1745076087262,1e-08,139.65,139.64,62.31104003]
[1745076088646,1e-08,139.65,139.64,33.16127184]
[1745076089161,1e-08,139.65,139.64,43.66139117]
[1745076092077,1e-08,139.65,139.64,62.31104003]
[1745076096066,0.01000001,139.66,139.64,62.31104003]
[1745076096467,0.01000001,139.66,139.65,10.50011933]
[1745076097277,0.01000001,139.66,139.65,17.66087837]
[1745076098171,0.01000001,139.66,139.65,7.16075904]
[1745076098767,0.01000001,139.66,139.65,26.0]
[1745076099882,0.01000001,139.66,139.63,33.16155392]
[1745076100176,10.51011934,139.66,139.63,33.16155392]
[1745076103377,10.51011934,139.66,139.63,43.66167325]
[1745076103378,0.01000001,139.66,139.63,43.66167325]
[1745076103674,0.01000001,139.66,139.64,10.50011933]
[1745076104057,0.01000001,139.66,139.63,43.66167325]
[1745076104254,0.01000001,139.66,139.65,55.14976819]
[1745076106475,0.01000001,139.66,139.65,62.31052723]
[1745076108775,0.01000001,139.66,139.65,36.31052723]
[1745076108973,0.03,139.72,139.66,29.14976819]
[1745076109280,0.03,139.72,139.7,10.50011933]
[1745076110164,0.03,139.72,139.7,17.65796742]
[1745076111487,0.03,139.72,139.7,7.15784809]
[1745076112884,0.03,139.72,139.69,33.15847962]
[1745076114384,0.03,139.72,139.69,26.0]
[1745076117586,10.53011933,139.72,139.69,26.0]
[1745076118390,10.53011933,139.72,139.69,33.15861311]
[1745076119085,10.53011933,139.72,139.69,26.0]
[1745076119489,10.53011933,139.72,139.69,33.15863377]
[1745076120192,10.50011933,139.71,139.69,26.0]
[1745076121077,10.50011933,139.71,139.67,31.67962377]
[1745076121078,10.50011933,139.7,139.67,40.02]
[1745076121281,7.15778625,139.71,139.67,40.02]
[1745076121282,10.50011933,139.69,139.67,40.02]
[1745076121686,10.50011933,139.7,139.67,40.02]
[1745076121889,10.50011933,139.7,139.67,47.17964262]
[1745076122091,10.50011933,139.71,139.67,47.17964262]
[1745076122899,17.68752835,139.72,139.67,57.67976195]
[1745076124693,10.53011933,139.72,139.67,57.67976195]
[1745076124894,0.03,139.72,139.68,10.50011933]
[1745076125094,10.53011933,139.72,139.67,57.67976195]
[1745076127499,0.03,139.72,139.67,57.67976195]
[1745076127678,10.53011933,139.72,139.67,57.67976195]
[1745076131683,17.68730074,139.72,139.67,57.67976195]
[1745076132998,10.53011933,139.72,139.67,57.67976195]
[1745076134703,17.68735579,139.72,139.67,57.67976195]
[1745076134893,10.50011933,139.71,139.67,47.17964262]
[1745076136004,10.50011933,139.69,139.67,14.02]
[1745076136509,10.50011933,139.69,139.65,7.16032016]
[1745076136888,0.03,139.72,139.68,29.14976819]
[1745076137092,0.03,139.72,139.69,10.50011933]
[1745076137988,0.03,139.72,139.7,7.15819613]
[1745076138604,0.03,139.72,139.7,17.65831546]
[1745076140795,0.03,139.72,139.71,44.64964886]
[1745076141000,0.03,139.72,139.71,55.14976819]
[1745076142305,0.03,139.72,139.71,33.15768377]
[1745076143407,0.03,139.72,139.71,43.6578031]
[1745076144809,0.03,139.72,139.71,57.6178031]
[1745076145610,0.03,139.72,139.71,47.11768377]
[1745076148706,0.03,139.72,139.71,57.6178031]
[1745076150312,0.03,139.72,139.71,76.26745196]
[1745076151410,0.03,139.72,139.71,33.15768377]
[1745076151608,10.53011933,139.72,139.7,13.96]
[1745076152702,0.03,139.72,139.7,13.96]
[1745076153006,0.03,139.72,139.7,31.61825036]
[1745076153512,0.03,139.72,139.7,21.11813103]
[1745076155810,0.03,139.72,139.7,31.61825036]
[1745076157217,0.03,139.72,139.7,21.11813103]
[1745076160012,10.53011933,139.72,139.7,13.96]
[1745076161620,0.03,139.72,139.7,21.11810472]
[1745076161798,10.53011933,139.72,139.7,13.96]
[1745076162109,0.03,139.72,139.7,13.96]
[1745076162316,10.53011933,139.72,139.69,26.0]
[1745076162510,10.53011933,139.72,139.69,47.11868945]
[1745076162815,0.03,139.72,139.69,47.11868945]
[1745076163018,10.53011933,139.72,139.69,47.11868945]
[1745076163920,0.03,139.72,139.69,47.11868945]
[1745076165215,0.03,139.72,139.69,57.61880878]
[1745076165600,0.03,139.72,139.69,47.11868945]
[1745076165801,10.53011933,139.72,139.69,47.11868945]
[1745076166007,10.50011933,139.71,139.69,47.11868945]
[1745076169803,10.53011933,139.72,139.69,47.11868945]
[1745076170005,10.53011933,139.72,139.69,33.15868945]
[1745076175725,0.03,139.72,139.69,33.15868945]
[1745076181629,0.03,139.72,139.71,7.15768377]
[1745076182736,0.03,139.72,139.7,7.15819613]
[1745076185936,0.03,139.72,139.7,17.65831546]
[1745076186242,0.03,139.72,139.7,7.15819613]
[1745076186939,0.03,139.75,139.74,26.0]
[1745076187120,0.03,139.75,139.74,50.46011933]
[1745076187316,0.03,139.75,139.74,39.96]
[1745076188217,0.03,139.75,139.74,58.60964886]
[1745076188834,0.03,139.75,139.74,76.26591532]
[1745076190022,0.03,139.75,139.74,57.61626646]
[1745076190437,0.03,139.75,139.74,65.76579599]
[1745076190818,0.03,139.75,139.74,39.96]
[1745076191224,0.03,139.75,139.74,47.11614713]
[1745076191426,0.03,139.75,139.74,39.96]
[1745076192238,0.03,139.75,139.74,47.11614713]
[1745076194923,0.03,139.75,139.74,65.76579599]
[1745076195124,0.03,139.78,139.74,91.16001495]
[1745076195322,2.3917649,139.79,139.77,36.50011933]
[1745076195534,2.3917649,139.79,139.74,13.30964713]
[1745076195841,12.89188423,139.79,139.75,39.96]
[1745076196349,81.13,139.86,139.78,26.0]
[1745076196350,0.03,139.86,139.78,26.0]
[1745076196535,10.50011933,139.8,139.78,26.0]
[1745076196842,10.53011933,139.81,139.78,26.0]
[1745076197020,10.53011933,139.81,139.79,7.15358752]
[1745076197224,0.03,139.81,139.79,7.15358752]
[1745076197430,10.53011933,139.81,139.79,7.15358752]
[1745076197739,0.03,139.81,139.79,7.15358752]
[1745076198126,10.53011933,139.81,139.79,7.15358752]
[1745076198744,0.03,139.81,139.79,7.15358752]
[1745076198942,0.03,139.86,139.79,7.15358752]
[1745076198943,0.03,139.86,139.85,18.64964886]
[1745076199137,52.37398865,139.96,139.95,44.64964886]
[1745076199351,35.6843902,140.12,140.03,18.64964886]
[1745076199352,39.32302343,140.05,140.03,18.64964886]
[1745076199657,128.94216288,140.06,140.04,42.00741392]
[1745076199824,128.94216288,140.06,140.0,97.6201488]
[1745076200024,128.94216288,140.06,140.05,10.50011933]
[1745076200226,158.20550687,140.15,140.06,20.0]
[1745076200227,157.20550687,140.15,140.06,20.0]
[1745076200429,224.57929554,140.21,140.16,20.0]
[1745076200635,224.57929554,140.21,140.16,30.50011933]
[1745076200832,0.1,140.28,140.22,20.0]
[1745076201027,0.1,140.28,140.22,36.50011933]
[1745076201236,0.1,140.28,140.22,32.47312764]
[1745076201437,0.1,140.28,140.22,58.47312764]
[1745076201630,0.1,140.28,140.25,20.0]
[1745076201825,0.1,140.28,140.21,20.0]
[1745076202025,0.1,140.28,140.24,20.0]
[1745076202445,1.0,140.31,140.3,20.0]
[1745076202649,23.25776382,140.31,140.16,20.0]
[1745076202825,16.23656382,140.29,140.24,86.80965473]
[1745076203031,7.12758374,140.3,140.24,86.80965473]
[1745076203626,77.98878976,140.25,140.21,108.51206841]
[1745076203826,25.99439488,140.22,140.21,108.51206841]
[1745076204050,13.68372011,140.25,140.21,108.51206841]
[1745076204329,25.99439488,140.22,140.21,108.51206841]
[1745076204831,25.99439488,140.22,140.2,64.86454698]
[1745076205051,33.12655378,140.21,140.2,64.86454698]
[1745076205232,25.99439488,140.21,140.2,64.86454698]
[1745076205545,25.99439488,140.21,140.16,64.86454698]
[1745076205852,51.98878976,140.17,140.16,64.86454698]
[1745076206067,25.99439488,140.17,140.16,64.86454698]
[1745076206348,1.0,140.13,140.11,108.51206841]
[1745076206544,1.0,140.13,140.07,35.20331637]
[1745076206545,1.0,140.09,139.98,35.24030688]
[1745076206847,25.99439488,140.08,140.02,25.99439488]
[1745076207050,25.99439488,140.03,140.02,25.99439488]
[1745076207430,25.99439488,140.03,139.87,2.6179]
[1745076207431,33.13572173,140.03,139.9,35.81865975]
[1745076207639,19.58306775,140.08,139.97,1.0]
[1745076207850,25.99439488,140.01,139.97,1.0]
[1745076208040,25.99439488,140.0,139.97,1.0]
[1745076208348,25.99439488,140.0,139.98,1.0]
[1745076208551,25.99439488,140.01,139.97,1.0]
[1745076209250,26.0,140.07,140.0,39.56791478]
[1745076209553,26.0,140.07,140.0,40.56791478]
[1745076209554,39.56791478,140.06,140.0,40.56791478]
[1745076209747,39.56791478,140.01,139.96,1.0]
[1745076209950,39.56791478,139.97,139.96,35.74589264]
[1745076210140,39.56791478,139.97,139.93,35.28911035]
[1745076210333,39.56791478,139.94,139.9,1.0]
[1745076210750,46.7131411,139.96,139.93,1.0]
[1745076210945,46.7131411,139.96,139.88,17.38]
[1745076210946,7.14336738,139.99,139.95,1.0]
[1745076211155,7.14336738,139.99,139.95,40.56791478]
[1745076211351,7.14336738,139.99,139.95,1.0]
[1745076211638,46.71128216,139.99,139.95,1.0]
[1745076211946,7.14336738,139.99,139.95,1.0]
[1745076212842,7.14336738,139.99,139.94,40.56791478]
[1745076213051,7.14336738,139.99,139.95,1.0]
[1745076213251,7.14336738,139.99,139.96,1.0]
[1745076213446,7.14234697,140.01,139.97,40.56791478]
[1745076213646,46.70822181,140.05,140.0,40.56791478]
[1745076213846,7.14030703,140.05,140.01,39.56791478]
[1745076214445,24.99107461,140.05,140.01,39.56791478]
[1745076215148,39.56791478,140.07,140.01,39.56791478]
[1745076215341,39.56791478,140.07,140.0,1.0]
[1745076215658,39.56791478,140.09,140.04,42.9591686]
[1745076216052,39.56791478,140.08,140.04,42.9591686]
[1745076216253,26.0,140.08,140.04,42.9591686]
[1745076216946,7.13928749,140.07,140.04,42.9591686]
[1745076217839,17.8480842,140.08,140.04,42.9591686]
[1745076218658,33.91053279,140.09,140.03,39.56791478]
[1745076218855,33.91053279,140.09,140.03,1.0]
[1745076219060,26.0,140.09,140.03,40.56791478]
[1745076219561,65.56791478,140.09,140.04,39.56791478]
[1745076219851,65.56791478,140.09,140.05,35.81581768]
[1745076220054,39.56791478,140.06,140.0,53.99967148]
[1745076220248,39.56791478,140.06,140.0,18.38]
[1745076220249,39.56791478,140.05,140.0,18.38]
[1745076220455,26.0,140.06,140.0,18.38]
[1745076220456,39.56791478,140.04,140.0,53.99967148]
[1745076220656,39.56791478,140.05,140.0,53.99967148]
[1745076220839,39.56791478,140.05,140.0,93.56758626]
[1745076221035,18.64964886,140.05,139.99,85.77207859]
[1745076221246,26.0,140.05,139.99,10.46801114]
[1745076221464,26.0,140.01,139.99,10.46801114]
[1745076221849,39.56791478,140.02,139.99,10.46801114]
[1745076222055,24.99642908,140.02,140.01,39.56791478]
[1745076222245,24.99642908,140.02,140.0,39.56791478]
[1745076222562,24.99642908,140.02,139.99,40.56791478]
[1745076223142,7.14183688,140.02,140.01,39.56791478]
[1745076223342,7.14183688,140.02,140.0,40.56791478]
[1745076224262,24.99193608,140.05,140.01,39.56791478]
[1745076225342,24.99193608,140.05,140.01,21.45542996]
[1745076225561,26.14943072,140.06,140.01,21.45542996]
[1745076225754,39.56791478,140.05,140.01,21.45542996]
[1745076226063,39.56791478,140.03,139.98,1.0]
[1745076226256,39.56791478,140.03,139.98,40.56791478]
[1745076226444,39.56791478,140.03,139.98,39.56791478]
[1745076226855,17.85162905,140.05,139.98,1.0]
[1745076226856,39.56791478,140.02,139.98,1.0]
[1745076227044,0.02438225,140.02,139.98,1.0]
[1745076227240,39.59229703,140.02,139.97,82.47877471]
[1745076227557,39.59229703,140.02,139.96,1.0]
[1745076227558,7.14336738,139.99,139.96,1.0]
[1745076227857,25.00178583,139.99,139.95,40.56791478]
[1745076228252,25.00178583,139.99,139.95,1.0]
[1745076228455,25.00178583,139.99,139.96,39.56791478]
[1745076228657,25.00178583,139.99,139.96,40.56791478]
[1745076228863,25.00178583,139.99,139.96,39.56791478]
[1745076229162,25.00178583,139.99,139.96,1.0]
[1745076229464,25.00178583,139.99,139.97,39.56791478]
[1745076229962,17.85841845,139.99,139.97,39.56791478]
[1745076230474,7.14234697,140.01,139.98,39.56791478]
[1745076230643,7.14234697,140.01,140.0,39.56791478]
[1745076230840,24.9982144,140.01,139.99,39.56791478]
[1745076231567,7.14234697,140.01,139.99,39.56791478]
[1745076231953,0.02438225,140.02,139.99,39.56791478]
[1745076232355,0.02438225,140.02,139.98,39.56791478]
[1745076232673,0.02438225,140.02,139.96,39.56791478]
[1745076232674,39.56791478,140.01,139.96,39.56791478]
[1745076232981,39.56791478,140.01,139.96,40.56791478]
[1745076233368,39.59229703,140.02,139.97,39.56791478]
[1745076233666,0.02438225,140.02,139.98,39.56791478]
[1745076233866,0.02438225,140.02,140.01,39.56791478]
[1745076234074,0.02438225,140.02,139.99,39.56791478]
[1745076234277,0.02438225,140.02,139.97,40.56791478]
[1745076234576,0.02438225,140.02,139.97,1.0]
[1745076234749,0.02438225,140.02,139.98,39.56791478]
[1745076235165,0.02438225,140.02,139.97,26.09535193]
[1745076235364,26.09535193,140.01,139.96,1.0]
[1745076235583,52.11973418,140.02,139.97,26.09535193]
[1745076235949,7.14234697,140.01,139.98,26.09535193]
[1745076236153,7.14234697,140.01,139.99,26.09535193]
[1745076236466,7.14234697,140.01,140.0,26.09535193]
[1745076237355,0.02438225,140.02,140.0,26.09535193]
[1745076237356,7.16635294,140.02,140.0,26.09535193]
[1745076238169,0.02438225,140.02,140.01,26.09535193]
[1745076238363,52.11973418,140.02,139.96,1.0]
[1745076238567,26.09535193,140.01,139.96,1.0]
[1745076238753,52.11973418,140.02,139.97,26.09535193]
[1745076239553,26.02438225,140.02,139.99,26.09535193]
[1745076239858,26.02438225,140.02,139.98,26.09535193]
[1745076240260,7.14234697,140.01,139.97,26.09535193]
[1745076240458,7.14234697,140.01,139.96,27.09535193]
[1745076240769,7.14234697,140.01,139.94,7.14583172]
[1745076240770,7.14234697,140.01,139.95,1.0]
[1745076240952,7.14234697,140.01,139.96,26.09535193]
[1745076241152,33.2376989,140.01,139.96,27.09535193]
[1745076241465,7.14234697,140.01,139.96,27.09535193]
[1745076241863,7.14234697,140.01,139.94,7.1459002]
[1745076241864,26.09535193,140.0,139.95,1.0]
[1745076242067,26.09535193,140.0,139.93,50.32926822]
[1745076242068,26.09535193,139.98,139.93,26.063]
[1745076242271,26.0,140.02,139.95,1.0]
[1745076242272,23.00473651,139.96,139.95,1.0]
[1745076242964,23.00473651,139.96,139.94,26.09535193]
[1745076243168,23.00473651,139.96,139.95,26.09535193]
[1745076243369,23.00473651,139.96,139.95,27.09535193]
[1745076243565,23.00473651,139.96,139.95,26.09535193]
[1745076243765,23.00473651,139.96,139.94,26.09535193]
[1745076244170,23.00473651,139.96,139.95,1.0]
[1745076244750,23.00473651,139.96,139.95,27.09535193]
[1745076244955,30.14963505,139.96,139.94,26.09535193]
[1745076245156,23.00473651,139.96,139.94,26.09535193]
[1745076245362,23.00473651,139.96,139.95,1.0]
[1745076245670,30.14963505,139.96,139.93,0.063]
[1745076245973,56.24498698,139.96,139.93,0.063]
[1745076246269,33.2412716,139.94,139.93,0.063]
[1745076247462,26.0,139.91,139.9,0.063]
[1745076247664,26.0,139.91,139.9,1e-08]
[1745076247665,70.74500079,139.91,139.9,1e-08]
[1745076248389,77.89245272,139.91,139.9,1e-08]
[1745076249081,131.49834221,139.91,139.82,1.063]
[1745076249377,26.09535193,139.85,139.82,1.063]
[1745076249575,26.09535193,139.85,139.82,0.063]
[1745076249784,26.09535193,139.84,139.82,0.063]
[1745076249980,26.09535193,139.83,139.82,0.063]
[1745076250280,26.09535193,139.84,139.82,0.063]
[1745076250470,7.15102974,139.84,139.82,0.063]
[1745076251063,33.24638167,139.84,139.82,0.063]
[1745076251374,26.09535193,139.83,139.82,0.063]
[1745076251774,26.09535193,139.83,139.75,1.0]
[1745076251775,18.64964886,139.82,139.75,1.0]
[1745076251981,26.09535193,139.78,139.73,1.0]
[1745076252462,7.15461114,139.77,139.73,27.09535193]
[1745076252662,7.15461114,139.77,139.75,1.0]
[1745076252857,7.15461114,139.77,139.74,26.09535193]
[1745076253075,26.0,139.83,139.76,26.09535193]
[1745076253279,65.69113796,139.79,139.72,1.0]
[1745076253755,26.0,139.79,139.72,1.0]
[1745076253961,65.69113796,139.79,139.72,1.0]
[1745076254264,39.69113796,139.77,139.72,1.0]
[1745076254465,39.69113796,139.78,139.72,40.69113796]
[1745076254694,83.57576022,139.79,139.73,1.0]
[1745076254877,7.15409929,139.78,139.72,1.0]
[1745076255183,7.15409929,139.78,139.73,1.0]
[1745076255785,7.15409929,139.78,139.73,40.69113796]
[1745076256282,7.15409929,139.78,139.73,39.69113796]
[1745076256573,39.69113796,139.8,139.73,39.69113796]
[1745076256574,7.15307582,139.8,139.74,39.69113796]
[1745076256778,7.15307582,139.8,139.74,40.69113796]
[1745076257076,46.84421378,139.8,139.74,40.69113796]
[1745076258072,17.87715976,139.85,139.79,39.69113796]
[1745076258274,7.14949596,139.87,139.83,39.66675571]
[1745076258457,22.99078477,139.86,139.8,1.0]
[1745076258663,22.99078477,139.86,139.85,39.69113796]
[1745076259091,22.99078477,139.86,139.84,39.69113796]
[1745076259263,22.99078477,139.86,139.85,40.69113796]
[1745076260384,22.99078477,139.86,139.85,47.84165637]
[1745076263978,22.99078477,139.86,139.85,64.48165637]
[1745076264164,22.99078477,139.86,139.85,47.84165637]
[1745076264365,22.99078477,139.86,139.85,64.48165637]
[1745076266878,0.03,139.92,139.85,83.13130523]
[1745076267078,0.03,139.92,139.91,40.69113796]
[1745076267379,0.03,139.92,139.91,1.0]
[1745076267982,0.03,139.92,139.89,40.69113796]
[1745076268184,0.03,139.92,139.88,1.0]
[1745076268367,0.03,139.92,139.9,1.0]
[1745076268880,0.03,139.92,139.89,1.0]
[1745076269066,0.03,139.92,139.88,40.69113796]
[1745076269386,0.03,139.92,139.89,40.69113796]
[1745076269970,0.03,139.92,139.89,1.0]
[1745076270171,0.03,139.92,139.89,40.69113796]
[1745076270470,0.03,139.92,139.89,1.0]
[1745076270671,0.03,139.92,139.89,40.69113796]
[1745076271077,0.03,139.92,139.89,1.0]
[1745076273292,0.03,139.92,139.88,40.69113796]
[1745076273473,0.03,139.92,139.89,1.0]
[1745076274492,0.03,139.92,139.89,40.69113796]
[1745076274698,0.03,139.92,139.91,39.69113796]
[1745076274993,0.03,139.92,139.91,40.69113796]
[1745076275188,0.03,139.92,139.91,27.11660396]
[1745076275871,0.03,139.92,139.91,26.11660396]
[1745076276072,0.03,139.92,139.91,27.11660396]
[1745076276389,0.03,139.92,139.91,26.11660396]
[1745076276576,0.03,139.92,139.91,27.11660396]
[1745076276776,0.03,139.92,139.9,1.0]
[1745076277093,0.03,139.92,139.89,1.0]
[1745076278295,0.03,139.92,139.89,27.11660396]
[1745076278995,0.03,139.92,139.91,26.0]
[1745076279180,0.03,140.0,139.96,1.0]
[1745076279377,0.03,140.0,139.99,26.11660396]
[1745076279573,7.17298891,140.0,139.98,26.11660396]
[1745076279989,0.03,140.0,139.98,26.11660396]
[1745076281484,0.03,140.0,139.99,1.0]
[1745076281700,0.03,140.0,139.99,27.11660396]
[1745076284797,0.03,140.0,139.99,34.25997134]
[1745076285689,0.03,140.0,139.99,60.25997134]
[1745076285891,0.03,140.0,139.99,161.4096202]
[1745076286297,0.03,140.0,139.99,187.52622416]
[1745076286505,32.18230396,140.1,140.06,1.0]
[1745076286804,7.13860261,140.09,140.06,1.0]
[1745076287397,33.25520657,140.09,140.06,1.0]
[1745076287602,7.13860261,140.09,140.06,1.0]
[1745076288398,33.25448076,140.1,140.06,27.11660396]
[1745076288698,33.25448076,140.1,140.07,1.0]
[1745076288906,33.25385326,140.11,140.07,1.0]
[1745076289093,26.11660396,140.1,140.07,1.0]
[1745076290910,26.11660396,140.09,140.06,83.5]
[1745076291112,26.11660396,140.09,140.07,1.0]
[1745076291495,7.1372493,140.11,140.07,83.5]
[1745076291698,33.25385326,140.11,140.08,1.0]
[1745076292105,0.03,140.12,140.1,26.11660396]
[1745076292304,0.03,140.12,140.11,1.0]
[1745076292506,0.03,140.12,140.11,26.11660396]
[1745076292711,0.03,140.12,140.11,27.11660396]
[1745076293100,0.03,140.12,140.11,109.61660396]
[1745076293296,0.03,140.12,140.11,128.26625282]
[1745076293615,0.03,140.12,140.11,154.26625282]
[1745076294414,0.03,140.12,140.11,135.61660396]
[1745076294597,0.03,140.12,140.11,83.5]
[1745076294803,26.14660396,140.12,140.08,1.0]
[1745076295005,33.25399429,140.11,140.09,1.0]
[1745076295206,7.13739033,140.11,140.09,1.0]
[1745076295700,7.16689619,140.12,140.09,1.0]
[1745076295905,0.03,140.12,140.1,1.0]
[1745076296093,7.16686114,140.12,140.1,1.0]
[1745076296717,7.16686114,140.12,140.09,27.11660396]
[1745076296893,7.16686114,140.12,140.1,1.0]
[1745076297098,0.03,140.12,140.11,26.11660396]
[1745076297300,0.03,140.12,140.11,27.11660396]
[1745076298403,0.03,140.12,140.11,109.61660396]
[1745076298606,0.03,140.12,140.11,128.26625282]
[1745076298807,0.03,140.18,140.17,1.0]
[1745076299020,0.03,140.18,140.17,27.11660396]
[1745076300212,0.03,140.18,140.17,45.76625282]
[1745076300415,0.03,140.18,140.17,128.26625282]
[1745076301012,0.03,140.18,140.17,174.26625282]
[1745076301614,0.03,140.18,140.17,155.40044701]
[1745076302200,0.03,140.18,140.17,148.26625282]
[1745076302404,0.03,140.18,140.17,170.56625282]
[1745076303105,0.03,140.18,140.17,125.8]
[1745076303427,0.03,140.18,140.17,151.91660396]
[1745076304224,0.03,140.18,140.17,109.5]
[1745076304527,0.03,140.18,140.17,135.61660396]
[1745076304730,0.03,140.18,140.17,109.61660396]
[1745076305105,0.03,140.18,140.17,83.5]
[1745076305303,0.03,140.18,140.16,1.0]
[1745076305511,78.23320792,140.17,140.1,1.0]
[1745076305709,26.11660396,140.11,140.07,83.5]
[1745076305919,26.11660396,140.16,140.07,83.5]
[1745076306123,26.11660396,140.1,140.07,83.5]
[1745076306331,26.11660396,140.1,140.07,1.0]
[1745076306824,26.11660396,140.09,140.06,1.0]
[1745076307026,26.0,140.15,140.05,26.11660396]
[1745076307027,26.11660396,140.1,140.08,1.0]
[1745076307236,7.13826825,140.09,140.08,1.0]
[1745076308523,17.84016635,140.14,140.1,1.0]
[1745076308721,26.11660396,140.12,140.1,1.0]
[1745076308918,33.2528346,140.13,140.1,1.0]
[1745076309124,24.97680724,140.13,140.1,1.0]
[1745076309323,26.11660396,140.12,140.1,1.0]
[1745076309821,26.11660396,140.11,140.1,1.0]
[1745076310224,24.97324295,140.15,140.1,1.0]
[1745076310726,26.11660396,140.12,140.1,1.0]
[1745076311112,26.11660396,140.11,140.09,1.0]
[1745076312731,26.11660396,140.1,140.07,1.0]
[1745076313031,26.11660396,140.1,140.09,1.0]
[1745076313223,26.11660396,140.1,140.07,1.0]
[1745076313427,33.25487221,140.09,140.07,1.0]
[1745076314034,26.11660396,140.08,140.07,1.0]
[1745076314534,33.25487221,140.09,140.07,1.0]
[1745076315034,26.11660396,140.08,140.07,1.0]
[1745076315529,33.2553818,140.08,140.04,83.563]
[1745076315723,33.2553818,140.08,140.04,82.563]
[1745076315724,26.11660396,140.06,140.04,82.563]
[1745076315925,26.11660396,140.06,140.05,1.0]
[1745076316127,26.11660396,140.06,140.04,0.063]
[1745076316517,26.11660396,140.05,140.04,0.063]
[1745076317024,24.98572244,140.08,140.04,0.063]
[1745076317331,7.13877784,140.08,140.06,1.0]
[1745076317635,33.25589145,140.07,140.06,1.0]
[1745076317829,7.13928749,140.07,140.06,1.0]
[1745076318717,33.2543627,140.1,140.08,1.0]
[1745076319942,26.11660396,140.09,140.08,1.0]
[1745076321244,26.11660396,140.09,140.06,1.0]
[1745076321429,26.11660396,140.07,140.05,1.0]
[1745076321635,26.11660396,140.06,140.05,1.0]
[1745076322023,33.25640118,140.06,140.05,1.0]